bitfinex/quotes_ETHUSD_20250210
["timestamp","ask_amount","ask_price","bid_price","bid_amount"]
[1739157240402,3.92376685,2600.1,2600.0,3.19756234]
[1739157240403,0.07776685,2600.1,2600.0,3.19756234]
[1739157240699,3.0,2600.5,2600.0,7.04371234]
[1739157240852,3.0,2600.5,2600.3,2.21560213]
[1739157241056,6.84552,2600.5,2600.3,2.21560213]
[1739157241255,6.84556,2600.4,2600.3,2.21560213]
[1739157241510,3.0,2600.4,2600.3,2.21560213]
[1739157243420,0.78864584,2600.5,2600.3,2.21560213]
[1739157243713,3.84491,2600.9,2600.4,3.84551]
[1739157244003,3.84491,2600.9,2600.3,2.43716234]
[1739157244004,0.77239701,2600.9,2600.7,2.21560213]
[1739157244204,0.7936,2601.3,2600.7,2.21560213]
[1739157244370,4.63795,2601.3,2600.7,6.06070213]
[1739157244582,4.63795,2601.3,2601.0,2.21560213]
[1739157244907,3.84451,2601.2,2601.0,2.21560213]
[1739157245906,0.75378974,2601.1,2601.0,2.21560213]
[1739157246061,4.59830974,2601.1,2601.0,2.21560213]
[1739157246264,3.84473,2601.0,2600.7,2.21560213]
[1739157247461,7.68951,2601.0,2600.7,2.21560213]
[1739157247804,3.84473,2601.0,2600.7,2.21560213]
[1739157248006,3.84497,2600.8,2600.4,2.21560213]
[1739157248213,3.84533,2600.6,2600.4,2.21560213]
[1739157248507,8.46766,2600.8,2600.4,2.21560213]
[1739157248719,3.84513,2600.7,2600.4,2.21560213]
[1739157250409,3.84497,2600.8,2600.4,2.21560213]
[1739157250635,7.69006,2600.8,2600.4,2.21560213]
[1739157250834,0.75722578,2600.7,2600.4,2.21560213]
[1739157251005,0.75722578,2600.7,2600.4,2.90050734]
[1739157251204,0.75722578,2600.7,2600.4,2.21560213]
[1739157251509,4.60236578,2600.7,2600.4,2.21560213]
[1739157251695,4.60236578,2600.7,2600.6,1.7314982]
[1739157253001,0.7776,2600.1,2599.7,1.7314982]
[1739157253204,3.84644,2599.8,2599.7,1.7314982]
[1739157253409,0.07695888,2599.8,2599.7,1.7314982]
[1739157253631,3.8454,2600.6,2599.7,1.7314982]
[1739157253632,4.6232,2600.4,2599.7,1.7314982]
[1739157253930,6.84585,2600.2,2600.1,1.7314982]
[1739157254626,3.84644,2599.9,2599.8,1.7314982]
[1739157255137,3.84602,2600.1,2599.8,1.7314982]
[1739157256413,3.8463,2599.9,2599.8,1.7314982]
[1739157256595,3.84602,2600.1,2599.8,1.7314982]
[1739157257241,3.8463,2599.9,2599.8,1.7314982]
[1739157258153,4.62375,2600.0,2599.8,1.7314982]
[1739157258315,3.84615,2600.0,2599.8,1.7314982]
[1739157258718,0.78117059,2600.2,2599.8,1.98340802]
[1739157259061,4.62702059,2600.2,2600.1,1.7314982]
[1739157259443,3.8463,2599.9,2599.8,1.7314982]
[1739157261761,3.84615,2600.0,2599.8,1.7314982]
[1739157261999,4.62708059,2600.2,2599.8,1.7314982]
[1739157262295,7.62708059,2600.2,2600.1,1.7314982]
[1739157263356,0.78117059,2600.2,2600.1,1.7314982]
[1739157265095,4.62702059,2600.2,2600.1,1.7314982]
[1739157266094,0.78117059,2600.2,2600.1,1.7314982]
[1739157266270,3.84567,2600.4,2600.1,1.98402802]
[1739157266465,3.8458,2600.3,2600.1,1.7314982]
[1739157266981,3.8454,2600.6,2600.1,1.7314982]
[1739157267295,3.8454,2600.6,2600.5,1.7314982]
[1739157267494,4.60176917,2600.6,2600.5,1.7314982]
[1739157268871,4.6789627,2600.6,2600.5,1.7314982]
[1739157269587,3.84573,2600.3,2600.2,1.7314982]
[1739157269768,3.84546,2600.5,2600.2,1.7314982]
[1739157269967,3.84564,2600.4,2600.2,1.7314982]
[1739157270197,0.07719353,2600.3,2600.2,1.7314982]
[1739157270860,3.84557,2600.4,2600.2,1.7314982]
[1739157271076,0.07719353,2600.3,2600.2,1.7314982]
[1739157271708,3.92290353,2600.3,2600.2,1.7314982]
[1739157273670,3.84628,2600.0,2599.9,1.7314982]
[1739157273871,7.69211,2600.1,2599.9,1.7314982]
[1739157274070,0.07708924,2600.0,2599.9,1.7314982]
[1739157274270,0.07708924,2600.0,2599.9,2.32776552]
[1739157274469,3.84579,2600.3,2599.9,2.28930402]
[1739157274676,3.84579,2600.3,2600.2,1.7314982]
[1739157275056,4.51106917,2600.6,2600.2,1.7314982]
[1739157275260,0.75636917,2600.6,2600.5,1.7314982]
[1739157275489,7.60162917,2600.6,2600.5,1.7314982]
[1739157275963,0.75636917,2600.6,2600.5,1.7314982]
[1739157276178,3.8452,2600.7,2600.5,1.7314982]
[1739157276499,3.84491,2600.9,2600.5,1.7314982]
[1739157276798,3.84491,2600.9,2600.8,1.7314982]
[1739157277005,4.63347883,2600.9,2600.8,1.7314982]
[1739157278219,3.84526,2600.6,2600.5,1.7314982]
[1739157278398,3.84565,2600.4,2600.2,1.7314982]
[1739157278709,7.69135,2600.4,2600.2,1.7314982]
[1739157278911,3.84565,2600.4,2600.2,1.7314982]
[1739157279410,7.6913,2600.4,2600.2,1.7314982]
[1739157280012,3.84565,2600.4,2600.2,1.7314982]
[1739157280374,3.84571,2600.3,2600.2,1.7314982]
[1739157281372,3.84565,2600.4,2600.2,1.7314982]
[1739157282111,3.84571,2600.3,2600.2,1.7314982]
[1739157283917,3.92310335,2600.3,2600.2,1.7314982]
[1739157284282,4.69550335,2600.3,2600.2,1.7314982]
[1739157284694,3.92310335,2600.3,2600.2,1.7314982]
[1739157286123,0.85329391,2600.3,2600.2,1.7314982]
[1739157286309,0.85329391,2600.3,2600.0,1.7314982]
[1739157286620,0.85329391,2600.3,2600.1,0.55777082]
[1739157287194,0.85329391,2600.3,2600.0,1.7314982]
[1739157288218,0.07739335,2600.3,2600.1,0.77]
[1739157288384,3.84542,2600.5,2600.1,0.77]
[1739157288581,3.84542,2600.5,2600.4,1.7314982]
[1739157288786,4.59898916,2600.5,2600.4,1.7314982]
[1739157288987,0.75356916,2600.5,2600.4,1.7314982]
[1739157289603,4.59897916,2600.5,2600.4,1.7314982]
[1739157289984,5.37137916,2600.5,2600.4,1.7314982]
[1739157295234,4.59897916,2600.5,2600.4,1.7314982]
[1739157296456,3.84585,2600.2,2600.1,1.7314982]
[1739157297014,3.84574,2600.3,2600.1,1.7314982]
[1739157298964,0.07707188,2600.2,2600.1,1.7314982]
[1739157299317,3.84574,2600.3,2600.1,1.7314982]
[1739157299543,0.07707188,2600.2,2600.1,1.98164802]
[1739157299879,0.75356916,2600.5,2600.1,5.82764802]
[1739157300080,0.07707188,2600.2,2600.1,5.82764802]
[1739157300265,0.99487569,2600.8,2600.5,0.8059]
[1739157300266,0.75226008,2600.8,2600.5,0.8059]
[1739157300473,3.84478,2601.0,2600.7,1.7314982]
[1739157300666,3.8449,2600.9,2600.7,1.7314982]
[1739157300869,3.84497,2600.8,2600.7,1.7314982]
[1739157301287,3.0,2600.8,2600.4,1.7314982]
[1739157301445,3.84541,2600.5,2600.4,1.7314982]
[1739157302086,3.84585,2600.2,2600.1,1.7314982]
[1739157304146,3.84571,2600.3,2600.1,1.7314982]
[1739157304346,3.84585,2600.2,2600.1,1.7314982]
[1739157304583,3.84571,2600.3,2600.1,1.7314982]
[1739157304771,7.69154,2600.3,2600.1,1.7314982]
[1739157304977,3.84585,2600.2,2600.1,1.7314982]
[1739157305178,3.84571,2600.3,2600.1,1.7314982]
[1739157305342,7.69152,2600.3,2600.1,1.7314982]
[1739157305561,3.84571,2600.3,2600.1,1.7314982]
[1739157306076,7.69153,2600.3,2600.1,1.7314982]
[1739157306393,3.84571,2600.3,2600.1,1.7314982]
[1739157307002,3.84585,2600.2,2600.1,1.7314982]
[1739157307344,0.76186808,2600.5,2600.1,1.7314982]
[1739157307493,0.76186808,2600.5,2600.4,1.7314982]
[1739157307836,4.60729808,2600.5,2600.4,1.7314982]
[1739157308623,3.8459,2600.2,2600.1,1.7314982]
[1739157309495,3.8459,2600.2,2599.7,0.8176]
[1739157309496,3.84644,2599.9,2599.8,1.7314982]
[1739157309796,3.84685,2599.6,2599.5,1.7314982]
[1739157310018,3.8466,2599.7,2599.5,1.7314982]
[1739157310535,3.84638,2599.9,2599.5,1.7314982]
[1739157310756,3.8463,2599.9,2599.8,1.7314982]
[1739157311339,6.8463,2599.9,2599.8,1.7314982]
[1739157311541,6.8463,2599.9,2599.2,0.8176]
[1739157311542,3.84674,2599.6,2599.5,1.7314982]
[1739157312230,4.61894043,2599.9,2599.5,1.7314982]
[1739157312432,4.61894043,2599.9,2599.8,1.7314982]
[1739157312632,3.84605,2600.1,2599.8,2.5490982]
[1739157313820,0.07617662,2600.0,2599.8,2.5490982]
[1739157314156,3.8463,2599.9,2599.8,1.7314982]
[1739157314523,4.68785486,2599.9,2599.8,1.7314982]
[1739157315362,7.68785486,2599.9,2599.8,1.7314982]
[1739157315573,3.07625486,2599.9,2599.8,1.7314982]
[1739157315784,0.07625486,2599.9,2599.8,2.5490982]
[1739157316773,3.92255486,2599.9,2599.8,1.7314982]
[1739157317726,0.07625486,2599.9,2599.8,1.7314982]
[1739157317928,0.07625486,2599.9,2599.8,5.83284802]
[1739157318165,0.07625486,2599.9,2599.8,1.98640802]
[1739157318378,4.62739774,2600.3,2599.8,1.98640802]
[1739157318589,0.07617662,2599.9,2599.8,4.10134982]
[1739157318797,0.78156774,2600.3,2599.9,4.66382]
[1739157318959,3.84535,2600.6,2600.2,1.7314982]
[1739157319295,3.84556,2600.4,2600.2,1.7314982]
[1739157319594,7.61101,2600.3,2600.2,1.7314982]
[1739157320489,5.36807669,2600.6,2600.2,1.7314982]
[1739157320691,3.84556,2600.4,2600.2,1.7314982]
[1739157321941,5.36808669,2600.6,2600.2,1.7314982]
[1739157322224,9.21345669,2600.6,2600.2,1.7314982]
[1739157322589,3.84541,2600.5,2600.2,1.7314982]
[1739157323649,0.822,2601.2,2600.2,6.21675802]
[1739157323863,3.8448,2601.0,2600.9,1.7314982]
[1739157324552,3.84515,2600.7,2600.6,1.7314982]
[1739157324850,3.84515,2600.7,2600.3,1.7314982]
[1739157324851,3.84556,2600.4,2600.3,1.7314982]
[1739157325186,3.846,2600.1,2600.0,1.7314982]
[1739157325497,4.66786,2600.2,2600.0,1.7314982]
[1739157325696,3.846,2600.1,2600.0,1.7314982]
[1739157325990,3.84586,2600.2,2600.0,1.7314982]
[1739157326156,3.84561,2600.4,2600.0,1.7314982]
[1739157326362,3.84561,2600.4,2600.3,1.7314982]
[1739157327093,6.84561,2600.4,2600.3,1.7314982]
[1739157327666,7.61824202,2600.4,2600.3,1.7314982]
[1739157328699,0.822,2600.7,2600.3,1.7314982]
[1739157328850,4.66679,2601.0,2600.6,1.7314982]
[1739157329047,3.84484,2600.9,2600.8,1.7314982]
[1739157329251,3.84479,2601.0,2600.8,1.7314982]
[1739157329495,7.68892,2601.2,2600.8,1.7314982]
[1739157329709,4.62887297,2601.1,2600.6,3.84525]
[1739157329860,0.78435297,2601.1,2600.8,0.7897]
[1739157330300,4.62889297,2601.1,2601.0,1.7314982]
[1739157330867,0.78435297,2601.1,2601.0,1.7314982]
[1739157331065,3.84386,2601.6,2601.0,1.7314982]
[1739157331271,3.84386,2601.6,2601.3,1.7314982]
[1739157331504,3.84386,2601.6,2601.3,2.5608982]
[1739157331654,3.84403,2601.5,2601.3,2.5608982]
[1739157331858,3.84386,2601.6,2601.3,2.5608982]
[1739157332692,0.76533322,2601.5,2601.3,2.5608982]
[1739157333196,0.7779,2601.9,2601.4,0.25608982]
[1739157333410,3.84283,2602.3,2601.8,1.7314982]
[1739157333573,0.75640087,2602.3,2602.1,1.7314982]
[1739157333774,4.62006,2602.7,2602.1,1.7314982]
[1739157333977,4.62006,2602.7,2602.5,1.7314982]
[1739157334291,4.87882705,2602.6,2602.5,1.7314982]
[1739157334591,3.84231,2602.6,2602.5,1.7314982]
[1739157335465,4.61272542,2602.6,2602.5,1.7314982]
[1739157335692,0.77041542,2602.6,2602.5,1.7314982]
[1739157336003,4.61272542,2602.6,2602.5,1.7314982]
[1739157336201,0.77041542,2602.6,2602.5,1.7314982]
[1739157336362,5.99433138,2602.9,2602.5,1.98627802]
[1739157336363,3.84191,2602.9,2602.5,1.98627802]
[1739157336567,3.84191,2602.9,2602.8,1.7314982]
[1739157337098,3.84186,2602.9,2602.8,1.7314982]
[1739157337569,4.62112575,2602.9,2602.8,1.7314982]
[1739157337765,0.77926575,2602.9,2602.8,1.7314982]
[1739157338111,3.84135,2603.3,2602.8,2.5477982]
[1739157338399,3.84135,2603.3,2603.2,1.7314982]
[1739157338600,4.62838917,2603.3,2603.2,1.7314982]
[1739157338904,3.84172,2603.1,2602.9,1.7314982]
[1739157339089,3.84172,2603.0,2602.9,1.7314982]
[1739157339864,3.84172,2603.1,2602.9,1.7314982]
[1739157340070,7.68339,2603.1,2602.9,1.7314982]
[1739157340405,3.84172,2603.0,2602.9,1.7314982]
[1739157340609,3.84169,2603.1,2602.9,1.7314982]
[1739157340769,4.62836917,2603.3,2602.9,1.7314982]
[1739157341184,0.78703917,2603.3,2603.2,1.7314982]
[1739157341726,4.62830917,2603.3,2603.2,1.7314982]
[1739157342119,3.84172,2603.0,2602.9,1.7314982]
[1739157343890,3.92183105,2603.0,2602.9,1.7314982]
[1739157344524,3.92183105,2603.0,2602.4,0.8163]
[1739157344525,3.84216,2602.7,2602.6,1.7314982]
[1739157344721,3.84216,2602.7,2602.3,1.7314982]
[1739157344892,3.84257,2602.5,2602.3,1.7314982]
[1739157345135,7.68514,2602.5,2602.3,1.7314982]
[1739157345420,0.08156888,2602.4,2602.3,1.7314982]
[1739157345792,3.92416888,2602.4,2602.3,1.7314982]
[1739157345998,0.08156888,2602.4,2602.3,1.7314982]
[1739157346398,3.84216,2602.7,2602.3,1.7314982]
[1739157346593,0.08156888,2602.4,2602.3,0.55745282]
[1739157346826,3.84216,2602.7,2602.3,0.55745282]
[1739157346979,0.08156888,2602.4,2602.0,6.3908882]
[1739157347333,0.08156888,2602.3,2602.0,10.2339882]
[1739157347526,0.08156888,2602.3,2602.0,6.3908882]
[1739157347821,3.84265,2602.4,2602.0,2.5477982]
[1739157348330,3.84265,2602.4,2602.3,1.7314982]
[1739157349124,4.61214406,2602.4,2602.3,1.7314982]
[1739157349723,3.84304,2602.1,2602.0,1.7314982]
[1739157349925,3.84344,2601.9,2601.7,1.7314982]
[1739157350721,3.84349,2601.8,2601.7,1.7314982]
[1739157351228,3.84344,2601.9,2601.7,1.7314982]
[1739157351528,3.84306,2602.1,2601.7,1.7314982]
[1739157351688,3.84306,2602.1,2602.0,1.7314982]
[1739157352087,7.68565,2602.3,2602.0,1.7314982]
[1739157352288,3.84304,2602.1,2602.0,1.7314982]
[1739157353839,7.60781208,2602.2,2602.0,1.7314982]
[1739157354133,3.84232,2602.6,2602.0,6.3340782]
[1739157354286,0.78546058,2602.5,2602.3,1.7314982]
[1739157354622,0.7715,2602.9,2602.5,0.7595]
[1739157354623,3.84199,2602.9,2602.5,0.7595]
[1739157354781,3.84202,2602.8,2602.5,0.7595]
[1739157355312,4.62424823,2602.8,2602.5,0.7595]
[1739157355827,4.62424823,2602.8,2602.4,1.7314982]
[1739157356042,3.84231,2602.6,2602.4,1.7314982]
[1739157356246,0.78222823,2602.8,2602.4,1.7314982]
[1739157356604,4.62424823,2602.8,2602.4,1.7314982]
[1739157357051,3.84245,2602.5,2602.4,1.7314982]
[1739157358015,0.7715,2602.7,2602.1,1.7314982]
[1739157358251,3.84285,2602.3,2602.1,1.7314982]
[1739157359105,3.9236882,2602.2,2602.1,1.7314982]
[1739157359301,0.0807882,2602.2,2602.1,1.7314982]
[1739157359546,3.84285,2602.3,2602.1,1.7314982]
[1739157359801,0.0807882,2602.2,2602.1,1.98059802]
[1739157360122,3.84239,2602.6,2602.1,1.98059802]
[1739157360321,0.080606,2602.2,2602.1,1.7314982]
[1739157360528,3.8429,2602.2,2602.1,1.7314982]
[1739157360862,0.080606,2602.2,2602.1,1.7314982]
[1739157361025,7.68576,2602.3,2602.1,1.7314982]
[1739157361414,0.08072747,2602.2,2602.1,1.7314982]
[1739157361617,3.84287,2602.3,2602.1,1.7314982]
[1739157361811,3.8429,2602.2,2602.1,1.7314982]
[1739157362047,0.08072747,2602.2,2602.1,1.7314982]
[1739157362211,3.84287,2602.3,2602.1,1.7314982]
[1739157362551,0.08072747,2602.2,2602.1,1.7314982]
[1739157362714,4.69008816,2602.2,2602.1,1.7314982]
[1739157363256,0.84718816,2602.2,2602.1,1.7314982]
[1739157363440,0.08072747,2602.2,2602.1,6.4061382]
[1739157363617,3.0,2602.6,2602.1,7.21990184]
[1739157363812,3.0,2602.6,2602.5,1.7314982]
[1739157364337,3.84275,2602.3,2602.2,1.7314982]
[1739157364851,3.8426,2602.4,2602.2,1.7314982]
[1739157365052,7.592682,2602.6,2602.2,1.7314982]
[1739157365053,4.592712,2602.6,2602.2,1.7314982]
[1739157365271,4.66518,2602.8,2602.5,1.7314982]
[1739157365420,3.84208,2602.8,2602.5,1.7314982]
[1739157367057,0.75939625,2602.8,2602.5,1.7314982]
[1739157367211,3.8413,2603.3,2602.7,3.84203]
[1739157367427,0.75424076,2603.1,2602.9,1.7314982]
[1739157367655,0.75424076,2603.1,2603.0,1.7314982]
[1739157368381,3.84088,2603.6,2603.0,1.7314982]
[1739157368536,7.68183,2603.6,2603.3,1.7314982]
[1739157368729,3.84088,2603.6,2603.3,1.7314982]
[1739157368929,3.8202,2603.7,2603.3,1.7314982]
[1739157369172,7.66097,2603.7,2603.3,1.7314982]
[1739157369470,0.77440104,2603.4,2603.3,1.7314982]
[1739157370170,4.03675885,2603.8,2603.3,1.7314982]
[1739157370171,3.84058,2603.8,2603.3,1.7314982]
[1739157370371,3.84019,2604.1,2603.6,2.5640982]
[1739157370676,3.84024,2604.0,2603.9,1.7314982]
[1739157371676,3.84064,2603.8,2603.6,1.7314982]
[1739157371875,3.84068,2603.7,2603.6,1.7314982]
[1739157372178,4.62656098,2604.0,2603.6,1.7314982]
[1739157372775,4.62656098,2604.0,2603.9,1.7314982]
[1739157373269,4.62656098,2604.0,2603.3,0.8326]
[1739157373270,3.84054,2603.8,2603.6,1.7314982]
[1739157373566,3.84055,2603.8,2603.6,1.7314982]
[1739157373973,3.92295989,2603.7,2603.6,1.7314982]
[1739157376269,0.08227989,2603.7,2603.6,2.5640982]
[1739157376469,4.62654098,2604.0,2603.6,2.82050802]
[1739157376675,4.62654098,2604.0,2603.9,1.7314982]
[1739157377985,0.8202,2604.4,2603.9,1.7314982]
[1739157378168,0.71693531,2605.0,2604.3,1.7314982]
[1739157378169,3.83959,2604.5,2604.3,1.7314982]
[1739157378612,0.78392615,2604.4,2604.3,1.7314982]
[1739157379095,3.0,2604.6,2604.3,1.7314982]
[1739157379458,7.67912,2604.5,2604.3,1.7314982]
[1739157379671,3.83951,2604.5,2604.3,1.7314982]
[1739157380091,7.67914,2604.5,2604.3,1.7314982]
[1739157380296,3.83951,2604.5,2604.3,1.7314982]
[1739157380807,3.83965,2604.4,2604.3,1.7314982]
[1739157381663,4.59288225,2604.5,2604.3,1.7314982]
[1739157381874,3.0,2604.6,2604.3,1.7314982]
[1739157382207,0.77620637,2604.6,2604.3,2.5640982]
[1739157382451,0.77620637,2604.6,2604.5,3.8395]
[1739157382612,0.0139359,2605.5,2604.5,3.8395]
[1739157382613,3.83835,2605.3,2604.8,3.83904]
[1739157382804,3.83835,2605.3,2605.0,1.7314982]
[1739157383009,0.0823579,2605.2,2605.0,1.7314982]
[1739157383205,3.83848,2605.2,2605.0,1.7314982]
[1739157383539,0.0823579,2605.1,2605.0,1.7314982]
[1739157384115,3.9209779,2605.1,2605.0,1.7314982]
[1739157384542,0.0823579,2605.1,2605.0,1.7314982]
[1739157384712,0.86140893,2605.1,2605.0,1.7314982]
[1739157385055,0.0823579,2605.1,2605.0,1.7314982]
[1739157385626,0.78012738,2605.3,2605.0,2.5640982]
[1739157385827,0.08345004,2605.1,2605.0,2.5640982]
[1739157386050,0.78012738,2605.3,2605.0,2.5640982]
[1739157386550,0.08345004,2605.2,2605.0,2.5640982]
[1739157386965,0.78012738,2605.3,2605.0,2.5640982]
[1739157387113,0.08345004,2605.1,2605.0,3.20440702]
[1739157387309,6.83827,2605.4,2605.0,3.20440702]
[1739157387310,3.83827,2605.4,2605.0,3.20440702]
[1739157387516,0.0139359,2605.5,2605.3,1.7314982]
[1739157387712,3.8519759,2605.5,2605.3,1.7314982]
[1739157388024,3.83818,2605.4,2605.0,2.5640982]
[1739157388223,3.83856,2605.2,2605.0,1.7314982]
[1739157388663,3.83862,2605.1,2605.0,1.7314982]
[1739157389020,3.92207004,2605.1,2605.0,1.7314982]
[1739157391115,3.92207004,2605.1,2604.7,1.7314982]
[1739157391363,3.92207004,2605.1,2604.4,1.7314982]
[1739157391364,3.8395,2604.5,2604.4,1.7314982]
[1739157391729,3.83932,2604.7,2604.4,1.7314982]
[1739157391946,3.92282004,2604.6,2604.4,1.98790802]
[1739157392143,3.8395,2604.5,2604.4,1.7314982]
[1739157392347,4.70440473,2604.6,2604.4,1.7314982]
[1739157392558,4.62095469,2604.6,2604.4,1.7314982]
[1739157392718,0.08345004,2604.5,2604.4,1.7314982]
[1739157393373,3.92295004,2604.5,2604.4,1.7314982]
[1739157393524,3.84008,2604.2,2604.1,1.7314982]
[1739157393724,3.92387654,2604.2,2604.1,1.7314982]
[1739157395664,0.08379654,2604.2,2604.1,1.98790802]
[1739157396021,0.8202,2605.1,2604.3,0.8326]
[1739157396259,0.77529151,2605.0,2604.8,1.7314982]
[1739157396447,7.69839932,2605.0,2604.8,1.7314982]
[1739157396923,3.83891,2604.9,2604.8,1.7314982]
[1739157397267,7.69836932,2605.0,2604.5,1.7314982]
[1739157397268,3.83922,2604.7,2604.5,1.7314982]
[1739157397424,3.83904,2604.9,2604.5,1.7314982]
[1739157397621,0.08473224,2604.6,2604.5,1.7314982]
[1739157397846,3.83923,2604.7,2604.5,1.7314982]
[1739157398057,0.08473224,2604.6,2604.5,1.7314982]
[1739157398221,0.08473224,2604.6,2604.5,1.98790802]
[1739157398438,3.83917,2604.8,2604.5,1.98790802]
[1739157398825,3.92396224,2604.7,2604.5,1.98790802]
[1739157399017,3.92396224,2604.7,2604.5,1.7314982]
[1739157399254,3.92396224,2604.7,2604.2,1.7314982]
[1739157399255,0.91793224,2604.7,2604.2,1.7314982]
[1739157399421,3.83979,2604.4,2604.2,1.7314982]
[1739157399636,3.8398,2604.3,2604.2,1.7314982]
[1739157400219,3.92453224,2604.3,2604.2,1.7314982]
[1739157401873,3.92453224,2604.3,2603.9,1.7314982]
[1739157401874,3.84022,2604.1,2603.9,1.7314982]
[1739157402032,3.84024,2604.0,2603.9,1.7314982]
[1739157402223,3.92468642,2604.0,2603.9,1.7314982]
[1739157406891,0.08444642,2604.0,2603.9,1.7314982]
[1739157407490,0.84196799,2604.0,2603.9,1.7314982]
[1739157407775,0.08444642,2604.0,2603.9,8.0874864]
[1739157407946,0.08444642,2604.0,2603.9,9.28028804]
[1739157408149,3.83932,2604.7,2604.2,3.83994]
[1739157408346,0.8332,2605.0,2604.6,1.7314982]
[1739157408545,3.83896,2604.9,2604.6,1.7314982]
[1739157409131,0.76221235,2605.0,2604.6,1.7314982]
[1739157409483,3.83862,2605.1,2604.9,1.7314982]
[1739157410451,0.7563681,2605.1,2604.9,1.7314982]
[1739157412281,0.0139359,2605.5,2605.0,4.62317]
[1739157412478,0.0139359,2605.5,2605.2,1.7314982]
[1739157412704,0.0139359,2605.5,2605.2,2.36696502]
[1739157412888,3.8519759,2605.5,2605.2,2.36696502]
[1739157413059,3.8519759,2605.5,2605.2,0.63546682]
[1739157413265,3.83818,2605.4,2605.0,2.5158982]
[1739157413464,3.83818,2605.4,2605.3,1.7314982]
[1739157413702,3.83862,2605.1,2605.0,1.7314982]
[1739157414001,3.83836,2605.3,2605.0,1.7314982]
[1739157414357,3.8519959,2605.5,2605.0,1.7314982]
[1739157414561,3.8519959,2605.5,2605.4,1.7314982]
[1739157414971,3.83851,2605.2,2605.1,1.7314982]
[1739157415502,3.8382,2605.4,2605.1,1.7314982]
[1739157415701,3.83841,2605.3,2605.1,1.7314982]
[1739157415876,4.62891,2605.3,2604.8,1.7314982]
[1739157416205,3.83898,2604.9,2604.8,1.7314982]
[1739157417445,3.83877,2605.0,2604.8,1.7314982]
[1739157417621,3.83891,2604.9,2604.8,1.7314982]
[1739157417838,3.83936,2604.6,2604.5,1.7314982]
[1739157418137,3.8398,2604.3,2604.2,1.7314982]
[1739157418437,3.84011,2604.1,2603.9,1.7314982]
[1739157418733,3.8398,2604.3,2603.9,1.7314982]
[1739157419205,0.08564144,2604.2,2603.9,1.7314982]
[1739157419622,7.67974,2604.3,2603.9,1.7314982]
[1739157419826,3.92501663,2604.1,2603.9,1.98308802]
[1739157420053,3.84024,2604.0,2603.9,1.7314982]
[1739157420245,3.92514529,2604.0,2603.9,1.7314982]
[1739157420936,0.08490529,2604.0,2603.9,1.7314982]
[1739157421094,3.83986,2604.3,2603.9,2.5158982]
[1739157421295,3.83986,2604.3,2604.2,1.7314982]
[1739157421492,3.83925,2604.7,2604.2,1.7314982]
[1739157421699,3.83881,2605.0,2604.5,2.5158982]
[1739157422013,3.83881,2605.0,2604.8,1.7314982]
[1739157422210,4.60185619,2605.3,2604.8,1.7314982]
[1739157422578,3.83839,2605.3,2605.2,1.7314982]
[1739157423251,3.8519759,2605.5,2605.2,1.7314982]
[1739157423541,0.0139359,2605.5,2605.2,1.98308802]
[1739157423704,0.0139359,2605.5,2605.4,2.20757377]
[1739157425097,3.8519659,2605.5,2605.4,2.20757377]
[1739157426233,3.83823,2605.4,2605.2,0.25158982]
[1739157426439,3.83823,2605.4,2605.1,2.99197377]
[1739157426598,3.83823,2605.4,2605.1,3.29117115]
[1739157427126,0.79493796,2605.5,2605.1,3.29117115]
[1739157427339,0.0139359,2605.5,2605.4,2.20757377]
[1739157427497,3.8519659,2605.5,2605.4,2.20757377]
[1739157428072,3.83866,2605.1,2604.8,2.20757377]
[1739157428360,3.83866,2605.1,2604.8,2.50713115]
[1739157428562,3.83843,2605.3,2604.8,2.50713115]
[1739157428763,3.83843,2605.3,2605.1,2.20757377]
[1739157428961,3.83847,2605.2,2605.1,2.20757377]
[1739157429153,3.83885,2605.0,2604.8,2.20757377]
[1739157429350,3.83888,2605.0,2604.8,2.20757377]
[1739157429555,3.83891,2604.9,2604.5,8.66207324]
[1739157429732,3.83891,2604.9,2604.5,3.15258109]
[1739157429933,3.83888,2605.0,2604.5,2.20757377]
[1739157430149,3.83892,2604.9,2604.5,2.20757377]
[1739157430347,3.83908,2604.8,2604.5,2.20757377]
[1739157430748,0.7674359,2605.5,2604.5,2.20757377]
[1739157430969,0.7674359,2605.5,2605.2,2.20757377]
[1739157430970,0.0139359,2605.5,2605.2,2.20757377]
[1739157431171,3.8519759,2605.5,2605.2,2.20757377]
[1739157431348,0.0139359,2605.5,2605.2,2.20757377]
[1739157431531,3.8519759,2605.5,2605.2,2.20757377]
[1739157431946,0.0139359,2605.5,2605.2,2.50713115]
[1739157433063,3.8520759,2605.5,2605.2,2.50713115]
[1739157433236,3.8520759,2605.5,2605.2,2.20757377]
[1739157433237,3.83827,2605.4,2605.2,2.20757377]
[1739157433430,0.0139359,2605.5,2605.2,2.20757377]
[1739157433678,3.8520659,2605.5,2605.2,2.20757377]
[1739157433879,0.08018818,2605.4,2605.2,2.20757377]
[1739157434169,3.91837818,2605.4,2605.2,2.20757377]
[1739157434348,0.08018818,2605.4,2604.9,8.66207324]
[1739157435224,0.08018818,2605.4,2604.6,0.7818]
[1739157435225,3.83909,2604.8,2604.6,2.20757377]
[1739157435725,0.07991051,2604.7,2604.6,2.20757377]
[1739157436022,3.83891,2604.9,2604.6,2.20757377]
[1739157436216,0.07991051,2604.7,2604.6,2.42833115]
[1739157436407,7.67772,2605.0,2604.6,2.20757377]
[1739157436721,0.0796588,2604.7,2604.6,2.20757377]
[1739157436905,3.83907,2604.8,2604.6,2.20757377]
[1739157437111,0.0796588,2604.7,2604.6,2.20757377]
[1739157437424,3.83883,2605.0,2604.6,2.20757377]
[1739157437610,0.0796588,2604.7,2604.6,2.20757377]
[1739157437808,3.83903,2604.9,2604.6,2.42833115]
[1739157438130,3.9188688,2604.7,2604.6,2.20757377]
[1739157438325,3.8391,2604.8,2604.6,2.20757377]
[1739157438487,0.0139359,2605.5,2604.8,3.83892]
[1739157438808,0.0139359,2605.5,2605.4,7.37755377]
[1739157439128,1.03455021,2606.5,2605.8,3.83752]
[1739157439330,1.03455021,2606.5,2606.2,2.20757377]
[1739157439499,0.77400604,2606.6,2606.2,2.20757377]
[1739157439682,7.61044604,2606.6,2606.2,2.20757377]
[1739157439882,7.61043604,2606.6,2606.2,2.20757377]
[1739157440107,0.005,2606.6,2606.2,2.20757377]
[1739157440309,3.83537,2607.4,2606.2,2.20757377]
[1739157440310,0.77615565,2607.3,2606.7,0.55]
[1739157440524,0.005,2607.9,2607.6,4.61674]
[1739157440722,0.005,2607.9,2607.6,6.82431377]
[1739157441035,0.005,2607.9,2607.6,7.41265593]
[1739157441194,0.005,2607.9,2607.8,3.83464]